[Event "Titled Tuesday Blitz July 20 2021"]
[White "Zubov, Alexander"]
[Black "Timofeev, Artyom"]
[WhiteFideId "14109409"]
[BlackFideId "4140419"]
[WhiteElo "2740"]
[BlackElo "2582"]
[Result "1/2-1/2"]
[Round "10"]
[TimeControl "180+1"]
[Date "2021.07.20"]
[WhiteClock "0:00:25"]
[BlackClock "0:00:23"]

1. d4 {[%clk 0:02:56]}  Nf6 {[%clk 0:02:59]} 2. c4 {[%clk 0:02:56]}  b6 {[%clk 0:02:59]} 3. f3 {[%clk 0:02:56]}  d5 {[%clk 0:02:58]} 4. cxd5 {[%clk 0:02:55]}  Nxd5 {[%clk 0:02:59]} 5. e4 {[%clk 0:02:55]}  Nf6 {[%clk 0:03:00]} 6. Nc3 {[%clk 0:02:55]}  e6 {[%clk 0:02:59]} 7. Bc4 {[%clk 0:02:53]}  Be7 {[%clk 0:02:58]} 8. Nge2 {[%clk 0:02:53]}  O-O {[%clk 0:02:58]} 9. Be3 {[%clk 0:02:52]}  Ba6 {[%clk 0:02:57]} 10. Bxa6 {[%clk 0:02:51]}  Nxa6 {[%clk 0:02:57]} 11. Qa4 {[%clk 0:02:50]}  Nb4 {[%clk 0:02:54]} 12. O-O {[%clk 0:02:48]}  c5 {[%clk 0:02:51]} 13. a3 {[%clk 0:02:45]}  Nd3 {[%clk 0:02:43]} 14. Qb5 {[%clk 0:02:43]}  cxd4 {[%clk 0:02:34]} 15. Bxd4 {[%clk 0:02:40]}  Nf4 {[%clk 0:02:30]} 16. Rfd1 {[%clk 0:02:35]}  Nxe2+ {[%clk 0:02:28]} 17. Nxe2 {[%clk 0:02:35]}  Qb8 {[%clk 0:02:23]} 18. a4 {[%clk 0:02:22]}  Rd8 {[%clk 0:02:20]} 19. Be3 {[%clk 0:02:15]}  Qc7 {[%clk 0:01:50]} 20. Rdc1 {[%clk 0:02:13]}  Qd7 {[%clk 0:01:29]} 21. Qxd7 {[%clk 0:02:02]}  Nxd7 {[%clk 0:01:29]} 22. Rc7 {[%clk 0:01:51]}  Bd6 {[%clk 0:01:26]} 23. Rc6 {[%clk 0:01:50]}  Ne5 {[%clk 0:01:16]} 24. Rc2 {[%clk 0:01:47]}  Rac8 {[%clk 0:01:14]} 25. Rac1 {[%clk 0:01:37]}  Rxc2 {[%clk 0:01:14]} 26. Rxc2 {[%clk 0:01:37]}  Kf8 {[%clk 0:01:13]} 27. Kf1 {[%clk 0:01:32]}  Ke8 {[%clk 0:01:10]} 28. f4 {[%clk 0:01:27]}  Ng4 {[%clk 0:01:04]} 29. Bd4 {[%clk 0:01:11]}  Bxf4 {[%clk 0:00:57]} 30. h3 {[%clk 0:00:49]}  Rxd4 {[%clk 0:00:49]} 31. Nxd4 {[%clk 0:00:47]}  Ne3+ {[%clk 0:00:49]} 32. Ke2 {[%clk 0:00:48]}  Nxc2 {[%clk 0:00:49]} 33. Nxc2 {[%clk 0:00:49]}  Kd7 {[%clk 0:00:47]} 34. b4 {[%clk 0:00:49]}  Bd6 {[%clk 0:00:45]} 35. b5 {[%clk 0:00:48]}  Bc5 {[%clk 0:00:44]} 36. Ne1 {[%clk 0:00:49]}  f5 {[%clk 0:00:43]} 37. Kf3 {[%clk 0:00:49]}  g5 {[%clk 0:00:41]} 38. g4 {[%clk 0:00:49]}  Ke7 {[%clk 0:00:40]} 39. exf5 {[%clk 0:00:48]}  exf5 {[%clk 0:00:40]} 40. gxf5 {[%clk 0:00:49]}  Kf6 {[%clk 0:00:40]} 41. Kg4 {[%clk 0:00:48]}  h5+ {[%clk 0:00:38]} 42. Kxh5 {[%clk 0:00:48]}  Kxf5 {[%clk 0:00:38]} 43. Nd3 {[%clk 0:00:47]}  Be7 {[%clk 0:00:38]} 44. Nf2 {[%clk 0:00:43]}  Kf4 {[%clk 0:00:37]} 45. Kg6 {[%clk 0:00:42]}  Ke3 {[%clk 0:00:32]} 46. Ng4+ {[%clk 0:00:42]}  Kd4 {[%clk 0:00:32]} 47. Nh6 {[%clk 0:00:39]}  Kc4 {[%clk 0:00:29]} 48. Nf7 {[%clk 0:00:30]}  Kb4 {[%clk 0:00:29]} 49. Nxg5 {[%clk 0:00:31]}  Kxa4 {[%clk 0:00:29]} 50. h4 {[%clk 0:00:32]}  Kxb5 {[%clk 0:00:27]} 51. h5 {[%clk 0:00:31]}  Ba3 {[%clk 0:00:25]} 52. Ne4 {[%clk 0:00:31]}  Bf8 {[%clk 0:00:23]} 53. Kf7 {[%clk 0:00:25]}  Bh6 {[%clk 0:00:23]} 54. Kg6 {[%clk 0:00:26]}  Bf8 {[%clk 0:00:23]} 55. Kf7 {[%clk 0:00:25]}  Bh6 {[%clk 0:00:23]} 56. Kg6 {[%clk 0:00:25]}  Bf8 {[%clk 0:00:23]} 1/2-1/2


[Site "https://www.chess.com"]

[Event "Titled Tuesday Blitz July 20 2021"]
[White "Ahmadzada, Ahmad"]
[Black "Taichman, Ori"]
[WhiteFideId "13413007"]
[BlackFideId "2804069"]
[WhiteElo "2226"]
[BlackElo "2227"]
[Result "1-0"]
[Round "11"]
[TimeControl "180+1"]
[Date "2021.07.20"]
[WhiteClock "0:00:24"]
[BlackClock "0:00:04"]

1. Nf3 {[%clk 0:03:00]}  Nf6 {[%clk 0:02:58]} 2. g3 {[%clk 0:03:00]}  g6 {[%clk 0:02:59]} 3. Bg2 {[%clk 0:02:59]}  Bg7 {[%clk 0:02:59]} 4. O-O {[%clk 0:03:00]}  O-O {[%clk 0:03:00]} 5. b3 {[%clk 0:03:01]}  d6 {[%clk 0:02:46]} 6. Bb2 {[%clk 0:03:01]}  e5 {[%clk 0:02:45]} 7. d3 {[%clk 0:03:01]}  e4 {[%clk 0:02:36]} 8. dxe4 {[%clk 0:03:01]}  Nxe4 {[%clk 0:02:36]} 9. Bxg7 {[%clk 0:03:01]}  Kxg7 {[%clk 0:02:37]} 10. Nfd2 {[%clk 0:03:02]}  Nc5 {[%clk 0:02:28]} 11. c4 {[%clk 0:02:59]}  Nc6 {[%clk 0:02:25]} 12. Nc3 {[%clk 0:03:00]}  f5 {[%clk 0:02:15]} 13. Nd5 {[%clk 0:02:58]}  Ne5 {[%clk 0:02:08]} 14. Qc1 {[%clk 0:02:57]}  c6 {[%clk 0:02:08]} 15. Nc3 {[%clk 0:02:52]}  Qf6 {[%clk 0:02:02]} 16. Rd1 {[%clk 0:02:50]}  h5 {[%clk 0:02:00]} 17. b4 {[%clk 0:02:38]}  Ne6 {[%clk 0:01:33]} 18. f4 {[%clk 0:02:37]}  Ng4 {[%clk 0:01:30]} 19. h3 {[%clk 0:02:34]}  Qd4+ {[%clk 0:01:29]} 20. Kh1 {[%clk 0:02:27]}  Nf2+ {[%clk 0:01:08]} 21. Kh2 {[%clk 0:02:27]}  Ng4+ {[%clk 0:01:04]} 22. hxg4 {[%clk 0:02:09]}  hxg4 {[%clk 0:01:05]} 23. e3 {[%clk 0:01:33]}  Rh8+ {[%clk 0:00:57]} 24. Kg1 {[%clk 0:01:31]}  Qxe3+ {[%clk 0:00:56]} 25. Kf1 {[%clk 0:01:32]}  Qxg3 {[%clk 0:00:56]} 26. Nde4 {[%clk 0:01:25]}  fxe4 {[%clk 0:00:55]} 27. Nxe4 {[%clk 0:01:25]}  Qxf4+ {[%clk 0:00:40]} 28. Qxf4 {[%clk 0:01:26]}  Nxf4 {[%clk 0:00:41]} 29. Rxd6 {[%clk 0:01:26]}  Bf5 {[%clk 0:00:36]} 30. Ng3 {[%clk 0:01:14]}  Rad8 {[%clk 0:00:27]} 31. Rxd8 {[%clk 0:00:58]}  Rxd8 {[%clk 0:00:28]} 32. Re1 {[%clk 0:00:56]}  Rd2 {[%clk 0:00:17]} 33. Be4 {[%clk 0:00:56]}  Nh3 {[%clk 0:00:12]} 34. Re2 {[%clk 0:00:43]}  Rd1+ {[%clk 0:00:11]} 35. Re1 {[%clk 0:00:42]}  Rd2 {[%clk 0:00:11]} 36. Re2 {[%clk 0:00:42]}  Rd1+ {[%clk 0:00:11]} 37. Re1 {[%clk 0:00:42]}  Rxe1+ {[%clk 0:00:12]} 38. Kxe1 {[%clk 0:00:43]}  Bxe4 {[%clk 0:00:11]} 39. Nxe4 {[%clk 0:00:44]}  Nf4 {[%clk 0:00:11]} 40. b5 {[%clk 0:00:37]}  cxb5 {[%clk 0:00:11]} 41. cxb5 {[%clk 0:00:38]}  Kf8 {[%clk 0:00:11]} 42. Kf2 {[%clk 0:00:38]}  Ke7 {[%clk 0:00:10]} 43. Kg3 {[%clk 0:00:38]}  Ne2+ {[%clk 0:00:10]} 44. Kxg4 {[%clk 0:00:38]}  Nd4 {[%clk 0:00:10]} 45. a4 {[%clk 0:00:35]}  Ke6 {[%clk 0:00:10]} 46. Nc5+ {[%clk 0:00:35]}  Kf6 {[%clk 0:00:10]} 47. Nxb7 {[%clk 0:00:35]}  Nb3 {[%clk 0:00:11]} 48. a5 {[%clk 0:00:32]}  Ke7 {[%clk 0:00:09]} 49. a6 {[%clk 0:00:26]}  Kd7 {[%clk 0:00:09]} 50. b6 {[%clk 0:00:24]}  axb6 {[%clk 0:00:04]} 51. a7 {[%clk 0:00:24]}  Kc7 {[%clk 0:00:04]} 52. a8=Q {[%clk 0:00:24]}  Na5 {[%clk 0:00:04]} 53. Nxa5 {[%clk 0:00:24]} 1-0


[Site "https://www.chess.com"]

[Event "Titled Tuesday Blitz July 20 2021"]
[White "Altman, Joshua"]
[Black "Sargsyan, Anna M."]
[WhiteFideId "426210"]
[BlackFideId "13308130"]
[WhiteElo "1945"]
[BlackElo "2263"]
[Result "1-0"]
[Round "11"]
[TimeControl "180+1"]
[Date "2021.07.21"]
[WhiteClock "0:00:02"]
[BlackClock "0:00:01"]

1. d4 {[%clk 0:03:00]}  d5 {[%clk 0:02:59]} 2. c4 {[%clk 0:03:01]}  c6 {[%clk 0:02:59]} 3. cxd5 {[%clk 0:03:00]}  cxd5 {[%clk 0:03:00]} 4. Nf3 {[%clk 0:03:01]}  Nc6 {[%clk 0:03:01]} 5. Nc3 {[%clk 0:03:01]}  Nf6 {[%clk 0:03:01]} 6. Bf4 {[%clk 0:03:02]}  Bf5 {[%clk 0:02:59]} 7. e3 {[%clk 0:03:01]}  e6 {[%clk 0:02:59]} 8. Qb3 {[%clk 0:03:02]}  Bb4 {[%clk 0:02:55]} 9. Bb5 {[%clk 0:03:02]}  O-O {[%clk 0:02:54]} 10. Bxc6 {[%clk 0:03:02]}  Bxc3+ {[%clk 0:02:53]} 11. Qxc3 {[%clk 0:03:02]}  Rc8 {[%clk 0:02:53]} 12. Ne5 {[%clk 0:03:02]}  Ne4 {[%clk 0:02:49]} 13. Qa3 {[%clk 0:03:01]}  bxc6 {[%clk 0:02:50]} 14. f3 {[%clk 0:02:55]}  Nd6 {[%clk 0:02:27]} 15. O-O {[%clk 0:02:55]}  Nb5 {[%clk 0:02:25]} 16. Qa6 {[%clk 0:02:46]}  Nc7 {[%clk 0:02:01]} 17. Qxc6 {[%clk 0:02:24]}  f6 {[%clk 0:02:00]} 18. Nd7 {[%clk 0:02:09]}  Rf7 {[%clk 0:01:45]} 19. Nc5 {[%clk 0:01:58]}  Ne8 {[%clk 0:01:45]} 20. Qa6 {[%clk 0:01:45]}  e5 {[%clk 0:01:04]} 21. Bg3 {[%clk 0:01:44]}  Qb6 {[%clk 0:00:56]} 22. Qa3 {[%clk 0:01:41]}  Nd6 {[%clk 0:00:51]} 23. Na4 {[%clk 0:01:04]}  Qa6 {[%clk 0:00:44]} 24. Nc5 {[%clk 0:00:36]}  Qxa3 {[%clk 0:00:42]} 25. bxa3 {[%clk 0:00:36]}  Nc4 {[%clk 0:00:43]} 26. e4 {[%clk 0:00:25]}  dxe4 {[%clk 0:00:37]} 27. fxe4 {[%clk 0:00:25]}  Bg4 {[%clk 0:00:34]} 28. h3 {[%clk 0:00:24]}  Bh5 {[%clk 0:00:29]} 29. Rac1 {[%clk 0:00:24]}  Ne3 {[%clk 0:00:20]} 30. Rfe1 {[%clk 0:00:18]}  exd4 {[%clk 0:00:20]} 31. Bf2 {[%clk 0:00:16]}  Rfc7 {[%clk 0:00:19]} 32. Nd3 {[%clk 0:00:13]}  Rxc1 {[%clk 0:00:14]} 33. Rxc1 {[%clk 0:00:13]}  Rb8 {[%clk 0:00:13]} 34. Re1 {[%clk 0:00:11]}  Nc2 {[%clk 0:00:11]} 35. Rc1 {[%clk 0:00:11]}  Nxa3 {[%clk 0:00:10]} 36. Bxd4 {[%clk 0:00:11]}  Rd8 {[%clk 0:00:10]} 37. Rc3 {[%clk 0:00:05]}  Nb5 {[%clk 0:00:11]} 38. Rc5 {[%clk 0:00:03]}  Nxd4 {[%clk 0:00:11]} 39. Rxh5 {[%clk 0:00:04]}  Ne2+ {[%clk 0:00:10]} 40. Kf2 {[%clk 0:00:04]}  Nc3 {[%clk 0:00:09]} 41. Nf4 {[%clk 0:00:04]}  Nxe4+ {[%clk 0:00:09]} 42. Ke3 {[%clk 0:00:04]}  Ng3 {[%clk 0:00:07]} 43. Ra5 {[%clk 0:00:05]}  Nf1+ {[%clk 0:00:04]} 44. Kf2 {[%clk 0:00:05]}  Nd2 {[%clk 0:00:04]} 45. Rxa7 {[%clk 0:00:05]}  Re8 {[%clk 0:00:03]} 46. Nd5 {[%clk 0:00:05]}  Ne4+ {[%clk 0:00:03]} 47. Kg1 {[%clk 0:00:05]}  Ng5 {[%clk 0:00:03]} 48. Kh2 {[%clk 0:00:05]}  Re2 {[%clk 0:00:03]} 49. Nf4 {[%clk 0:00:05]}  Rb2 {[%clk 0:00:03]} 50. h4 {[%clk 0:00:04]}  Ne4 {[%clk 0:00:02]} 51. Ne6 {[%clk 0:00:04]}  g5 {[%clk 0:00:02]} 52. hxg5 {[%clk 0:00:04]}  fxg5 {[%clk 0:00:03]} 53. Rg7+ {[%clk 0:00:03]}  Kh8 {[%clk 0:00:04]} 54. Ra7 {[%clk 0:00:04]}  h5 {[%clk 0:00:04]} 55. Ra8+ {[%clk 0:00:04]}  Kh7 {[%clk 0:00:04]} 56. Ra4 {[%clk 0:00:05]}  Nf6 {[%clk 0:00:01]} 57. Nxg5+ {[%clk 0:00:05]}  Kg6 {[%clk 0:00:02]} 58. Ne6 {[%clk 0:00:06]}  Ng4+ {[%clk 0:00:02]} 59. Kg3 {[%clk 0:00:06]}  Kf5 {[%clk 0:00:03]} 60. Nd4+ {[%clk 0:00:05]}  Kg6 {[%clk 0:00:04]} 61. Nf3 {[%clk 0:00:05]}  Rc2 {[%clk 0:00:03]} 62. Ra6+ {[%clk 0:00:05]}  Kg7 {[%clk 0:00:03]} 63. a4 {[%clk 0:00:06]}  Ra2 {[%clk 0:00:03]} 64. a5 {[%clk 0:00:06]}  Ne3 {[%clk 0:00:03]} 65. Ra7+ {[%clk 0:00:05]}  Kf8 {[%clk 0:00:03]} 66. a6 {[%clk 0:00:05]}  Rxg2+ {[%clk 0:00:02]} 67. Kf4 {[%clk 0:00:05]}  Nd5+ {[%clk 0:00:03]} 68. Ke5 {[%clk 0:00:06]}  Nb6 {[%clk 0:00:03]} 69. Kf6 {[%clk 0:00:04]}  Ke8 {[%clk 0:00:01]} 70. Rb7 {[%clk 0:00:04]}  Nd7+ {[%clk 0:00:01]} 71. Kf5 {[%clk 0:00:02]} 1-0


[Site "https://www.chess.com"]

[Event "Titled Tuesday Blitz July 20 2021"]
[White "Ambartsumova, Karina"]
[Black "Mohammad Fahad, Rahman"]
[WhiteFideId "4166299"]
[BlackFideId "10207791"]
[WhiteElo "2262"]
[BlackElo "2323"]
[Result "0-1"]
[Round "11"]
[TimeControl "180+1"]
[Date "2021.07.21"]
[WhiteClock "0:00:16"]
[BlackClock "0:00:53"]

1. d4 {[%clk 0:03:00]}  Nf6 {[%clk 0:03:00]} 2. Nf3 {[%clk 0:03:00]}  d5 {[%clk 0:02:59]} 3. c4 {[%clk 0:02:58]}  c6 {[%clk 0:02:59]} 4. g3 {[%clk 0:02:58]}  Bf5 {[%clk 0:02:58]} 5. Qb3 {[%clk 0:02:55]}  Qb6 {[%clk 0:02:54]} 6. c5 {[%clk 0:02:44]}  Qxb3 {[%clk 0:02:54]} 7. axb3 {[%clk 0:02:45]}  e6 {[%clk 0:02:54]} 8. Nc3 {[%clk 0:02:44]}  Be7 {[%clk 0:02:53]} 9. b4 {[%clk 0:02:37]}  O-O {[%clk 0:02:53]} 10. b5 {[%clk 0:02:32]}  cxb5 {[%clk 0:02:53]} 11. Nxb5 {[%clk 0:02:33]}  Nc6 {[%clk 0:02:54]} 12. Bd2 {[%clk 0:02:25]}  a6 {[%clk 0:02:54]} 13. Na3 {[%clk 0:02:20]}  Ne4 {[%clk 0:02:52]} 14. e3 {[%clk 0:02:15]}  e5 {[%clk 0:02:41]} 15. Be2 {[%clk 0:02:00]}  Bh3 {[%clk 0:02:39]} 16. Nc2 {[%clk 0:01:35]}  exd4 {[%clk 0:02:32]} 17. exd4 {[%clk 0:01:34]}  Bf6 {[%clk 0:02:32]} 18. Be3 {[%clk 0:01:34]}  Rfe8 {[%clk 0:02:28]} 19. Rg1 {[%clk 0:01:29]}  h5 {[%clk 0:02:24]} 20. Nd2 {[%clk 0:01:19]}  Bf5 {[%clk 0:02:20]} 21. O-O-O {[%clk 0:00:39]}  Nxf2 {[%clk 0:02:02]} 22. Rdf1 {[%clk 0:00:29]}  Bxc2 {[%clk 0:01:47]} 23. Rxf2 {[%clk 0:00:20]}  Rxe3 {[%clk 0:01:45]} 24. Kxc2 {[%clk 0:00:20]}  Nxd4+ {[%clk 0:01:36]} 25. Kd1 {[%clk 0:00:21]}  a5 {[%clk 0:01:12]} 26. Bxh5 {[%clk 0:00:21]}  a4 {[%clk 0:01:13]} 27. Nb1 {[%clk 0:00:21]}  Rae8 {[%clk 0:01:07]} 28. Rd2 {[%clk 0:00:19]}  R8e5 {[%clk 0:01:06]} 29. Nc3 {[%clk 0:00:19]}  Rxh5 {[%clk 0:01:05]} 30. g4 {[%clk 0:00:17]}  Rhh3 {[%clk 0:01:02]} 31. Nxd5 {[%clk 0:00:17]}  Rd3 {[%clk 0:01:02]} 32. Nxf6+ {[%clk 0:00:15]}  gxf6 {[%clk 0:01:02]} 33. Rg2 {[%clk 0:00:16]}  Nb3 {[%clk 0:01:01]} 34. Rxd3 {[%clk 0:00:15]}  Rxd3+ {[%clk 0:01:02]} 35. Kc2 {[%clk 0:00:16]}  Rd5 {[%clk 0:01:01]} 36. Kc3 {[%clk 0:00:16]}  Rxc5+ {[%clk 0:01:02]} 37. Kb4 {[%clk 0:00:17]}  b5 {[%clk 0:01:01]} 38. h4 {[%clk 0:00:17]}  Rc4+ {[%clk 0:01:01]} 39. Kxb5 {[%clk 0:00:17]}  Rf4 {[%clk 0:00:58]} 40. g5 {[%clk 0:00:17]}  fxg5 {[%clk 0:00:54]} 41. hxg5 {[%clk 0:00:18]}  Kg7 {[%clk 0:00:55]} 42. Rg3 {[%clk 0:00:18]}  Nd2 {[%clk 0:00:54]} 43. Rg2 {[%clk 0:00:16]}  Nc4 {[%clk 0:00:53]} 44. Kxa4 {[%clk 0:00:16]}  Ne3+ {[%clk 0:00:53]} 0-1


[Site "https://www.chess.com"]

[Event "Titled Tuesday Blitz July 20 2021"]
[White "Aradhya, Garg"]
[Black "Ivanov, Mike"]
[WhiteFideId "25006746"]
[BlackFideId "2613158"]
[WhiteElo "2146"]
[BlackElo "2197"]
[Result "1-0"]
[Round "11"]
[TimeControl "180+1"]
[Date "2021.07.20"]
[WhiteClock "0:00:37"]
[BlackClock "0:00:03"]

1. d4 {[%clk 0:03:00]}  Nf6 {[%clk 0:03:00]} 2. c4 {[%clk 0:03:01]}  e6 {[%clk 0:03:00]} 3. Nf3 {[%clk 0:03:00]}  c5 {[%clk 0:03:00]} 4. d5 {[%clk 0:02:57]}  exd5 {[%clk 0:03:00]} 5. cxd5 {[%clk 0:02:58]}  d6 {[%clk 0:03:01]} 6. e4 {[%clk 0:02:58]}  g6 {[%clk 0:02:59]} 7. Bd3 {[%clk 0:02:58]}  Bg7 {[%clk 0:02:59]} 8. O-O {[%clk 0:02:59]}  O-O {[%clk 0:02:58]} 9. h3 {[%clk 0:02:59]}  c4 {[%clk 0:02:54]} 10. Bxc4 {[%clk 0:02:59]}  Nxe4 {[%clk 0:02:54]} 11. Re1 {[%clk 0:02:59]}  Nf6 {[%clk 0:02:34]} 12. Nc3 {[%clk 0:02:55]}  a6 {[%clk 0:02:30]} 13. a4 {[%clk 0:02:53]}  Nbd7 {[%clk 0:02:27]} 14. Bf4 {[%clk 0:02:53]}  Qc7 {[%clk 0:02:23]} 15. Bd3 {[%clk 0:02:12]}  Nc5 {[%clk 0:02:16]} 16. Bc2 {[%clk 0:02:07]}  Nh5 {[%clk 0:02:00]} 17. Be3 {[%clk 0:02:03]}  Nd7 {[%clk 0:01:43]} 18. Rc1 {[%clk 0:02:00]}  Re8 {[%clk 0:01:15]} 19. Qd2 {[%clk 0:01:37]}  Nf8 {[%clk 0:01:08]} 20. Bd4 {[%clk 0:01:28]}  Bd7 {[%clk 0:01:05]} 21. g4 {[%clk 0:01:27]}  Bxd4 {[%clk 0:01:03]} 22. Qxd4 {[%clk 0:01:27]}  Ng7 {[%clk 0:01:03]} 23. Ne4 {[%clk 0:01:26]}  Kh8 {[%clk 0:00:53]} 24. Bd3 {[%clk 0:01:11]}  Qd8 {[%clk 0:00:45]} 25. Nxd6 {[%clk 0:01:07]}  Rxe1+ {[%clk 0:00:45]} 26. Rxe1 {[%clk 0:01:08]}  Kg8 {[%clk 0:00:39]} 27. Nxb7 {[%clk 0:00:52]}  Qc7 {[%clk 0:00:35]} 28. Nc5 {[%clk 0:00:49]}  Rc8 {[%clk 0:00:34]} 29. Ne4 {[%clk 0:00:42]}  h5 {[%clk 0:00:09]} 30. Nf6+ {[%clk 0:00:40]}  Kh8 {[%clk 0:00:09]} 31. Ne5 {[%clk 0:00:40]}  Be8 {[%clk 0:00:08]} 32. d6 {[%clk 0:00:40]}  Qd8 {[%clk 0:00:05]} 33. Nxe8 {[%clk 0:00:37]}  Qxe8 {[%clk 0:00:04]} 34. Nxg6+ {[%clk 0:00:37]}  fxg6 {[%clk 0:00:03]} 35. Rxe8 {[%clk 0:00:37]} 1-0


[Site "https://www.chess.com"]

[Event "Titled Tuesday Blitz July 20 2021"]
[White "Arkell, Keith C"]
[Black "Khalafova, Narmin"]
[WhiteFideId "400270"]
[BlackFideId "13402625"]
[WhiteElo "2398"]
[BlackElo "2109"]
[Result "1-0"]
[Round "11"]
[TimeControl "180+1"]
[Date "2021.07.21"]
[WhiteClock "0:02:21"]
[BlackClock "0:01:01"]

1. d4 {[%clk 0:03:00]}  d5 {[%clk 0:02:59]} 2. Nf3 {[%clk 0:03:00]}  Nf6 {[%clk 0:02:59]} 3. c4 {[%clk 0:03:00]}  c6 {[%clk 0:02:59]} 4. Qc2 {[%clk 0:02:58]}  g6 {[%clk 0:02:57]} 5. Bf4 {[%clk 0:02:45]}  Bg7 {[%clk 0:02:55]} 6. e3 {[%clk 0:02:45]}  O-O {[%clk 0:02:54]} 7. Nc3 {[%clk 0:02:44]}  Bg4 {[%clk 0:02:49]} 8. Ne5 {[%clk 0:02:43]}  Bf5 {[%clk 0:02:48]} 9. Qb3 {[%clk 0:02:43]}  Qb6 {[%clk 0:02:31]} 10. h3 {[%clk 0:02:34]}  Be6 {[%clk 0:02:10]} 11. c5 {[%clk 0:02:31]}  Qxb3 {[%clk 0:02:07]} 12. axb3 {[%clk 0:02:32]}  Nbd7 {[%clk 0:02:07]} 13. b4 {[%clk 0:02:32]}  Nxe5 {[%clk 0:02:04]} 14. Bxe5 {[%clk 0:02:32]}  Nd7 {[%clk 0:02:04]} 15. Bxg7 {[%clk 0:02:31]}  Kxg7 {[%clk 0:02:05]} 16. b5 {[%clk 0:02:31]}  f6 {[%clk 0:01:58]} 17. b4 {[%clk 0:02:31]}  Bf7 {[%clk 0:01:56]} 18. Kd2 {[%clk 0:02:32]}  e5 {[%clk 0:01:56]} 19. Be2 {[%clk 0:02:32]}  f5 {[%clk 0:01:46]} 20. bxc6 {[%clk 0:02:30]}  bxc6 {[%clk 0:01:45]} 21. Ra6 {[%clk 0:02:30]}  Rfb8 {[%clk 0:01:36]} 22. Rb1 {[%clk 0:02:29]}  Rc8 {[%clk 0:01:30]} 23. Rba1 {[%clk 0:02:27]}  Rc7 {[%clk 0:01:17]} 24. b5 {[%clk 0:02:27]}  cxb5 {[%clk 0:01:12]} 25. Nxb5 {[%clk 0:02:24]}  Rcc8 {[%clk 0:01:07]} 26. Rxa7 {[%clk 0:02:21]}  Rxa7 {[%clk 0:01:01]} 27. Rxa7 {[%clk 0:02:22]}  Nf6 {[%clk 0:01:01]} 28. Rxf7+ {[%clk 0:02:20]}  Kxf7 {[%clk 0:01:00]} 29. Nd6+ {[%clk 0:02:20]}  Ke6 {[%clk 0:01:01]} 30. Nxc8 {[%clk 0:02:20]}  Ne4+ {[%clk 0:01:01]} 31. Ke1 {[%clk 0:02:21]} 1-0


[Site "https://www.chess.com"]

[Event "Titled Tuesday Blitz July 20 2021"]
[White "Asadli, Vugar"]
[Black "Narayanan.S.L"]
[WhiteFideId "13405764"]
[BlackFideId "5058422"]
[WhiteElo "2386"]
[BlackElo "2617"]
[Result "0-1"]
[Round "11"]
[TimeControl "180+1"]
[Date "2021.07.20"]
[WhiteClock "0:00:17"]
[BlackClock "0:00:13"]

1. e4 {[%clk 0:03:00]}  c5 {[%clk 0:02:58]} 2. Nc3 {[%clk 0:03:00]}  d6 {[%clk 0:02:57]} 3. Nf3 {[%clk 0:03:00]}  a6 {[%clk 0:02:57]} 4. d4 {[%clk 0:03:01]}  cxd4 {[%clk 0:02:57]} 5. Nxd4 {[%clk 0:03:02]}  Nf6 {[%clk 0:02:56]} 6. Qd3 {[%clk 0:03:02]}  Nbd7 {[%clk 0:02:42]} 7. Be2 {[%clk 0:02:56]}  e6 {[%clk 0:02:38]} 8. g4 {[%clk 0:02:52]}  Ne5 {[%clk 0:02:35]} 9. Qg3 {[%clk 0:02:49]}  b5 {[%clk 0:02:24]} 10. g5 {[%clk 0:02:40]}  Nfd7 {[%clk 0:02:22]} 11. f4 {[%clk 0:02:40]}  Nc4 {[%clk 0:02:19]} 12. Bxc4 {[%clk 0:02:39]}  bxc4 {[%clk 0:02:19]} 13. Be3 {[%clk 0:02:38]}  Bb7 {[%clk 0:01:55]} 14. f5 {[%clk 0:02:33]}  e5 {[%clk 0:01:54]} 15. Nde2 {[%clk 0:02:31]}  Qc7 {[%clk 0:01:50]} 16. Rd1 {[%clk 0:02:28]}  Be7 {[%clk 0:01:49]} 17. Nd5 {[%clk 0:02:26]}  Bxd5 {[%clk 0:01:49]} 18. Rxd5 {[%clk 0:02:27]}  Rb8 {[%clk 0:01:47]} 19. Bc1 {[%clk 0:01:56]}  Nb6 {[%clk 0:01:42]} 20. Rd1 {[%clk 0:01:55]}  Na4 {[%clk 0:01:42]} 21. b3 {[%clk 0:01:45]}  cxb3 {[%clk 0:01:41]} 22. axb3 {[%clk 0:01:46]}  Nb6 {[%clk 0:01:36]} 23. Nc3 {[%clk 0:01:44]}  Rc8 {[%clk 0:01:34]} 24. Rd3 {[%clk 0:01:43]}  d5 {[%clk 0:01:30]} 25. Nxd5 {[%clk 0:01:41]}  Nxd5 {[%clk 0:01:29]} 26. exd5 {[%clk 0:01:42]}  Qxc2 {[%clk 0:01:28]} 27. O-O {[%clk 0:01:24]}  O-O {[%clk 0:01:26]} 28. d6 {[%clk 0:01:22]}  Bxd6 {[%clk 0:01:26]} 29. f6 {[%clk 0:01:18]}  g6 {[%clk 0:01:24]} 30. Rd5 {[%clk 0:01:09]}  Qc6 {[%clk 0:01:22]} 31. Rdd1 {[%clk 0:00:59]}  Bc5+ {[%clk 0:01:19]} 32. Be3 {[%clk 0:00:59]}  h5 {[%clk 0:01:11]} 33. Qxe5 {[%clk 0:00:51]}  Bxe3+ {[%clk 0:01:10]} 34. Qxe3 {[%clk 0:00:51]}  Rfe8 {[%clk 0:01:10]} 35. Qf3 {[%clk 0:00:47]}  Qc5+ {[%clk 0:01:08]} 36. Kh1 {[%clk 0:00:48]}  Qxg5 {[%clk 0:01:09]} 37. Rg1 {[%clk 0:00:48]}  Qh6 {[%clk 0:01:02]} 38. Rd7 {[%clk 0:00:47]}  Rc1 {[%clk 0:01:00]} 39. Rdd1 {[%clk 0:00:35]}  Rxd1 {[%clk 0:01:00]} 40. Rxd1 {[%clk 0:00:36]}  Qg5 {[%clk 0:00:58]} 41. Rg1 {[%clk 0:00:35]}  Qh6 {[%clk 0:00:43]} 42. Qd5 {[%clk 0:00:29]}  Re6 {[%clk 0:00:38]} 43. Rf1 {[%clk 0:00:27]}  Qf8 {[%clk 0:00:38]} 44. Qd7 {[%clk 0:00:21]}  Qd6 {[%clk 0:00:33]} 45. Qxd6 {[%clk 0:00:20]}  Rxd6 {[%clk 0:00:33]} 46. Kg2 {[%clk 0:00:21]}  Kh7 {[%clk 0:00:29]} 47. Kg3 {[%clk 0:00:21]}  g5 {[%clk 0:00:29]} 48. Rf5 {[%clk 0:00:19]}  Kg6 {[%clk 0:00:29]} 49. Ra5 {[%clk 0:00:19]}  Rxf6 {[%clk 0:00:29]} 50. h4 {[%clk 0:00:20]}  g4 {[%clk 0:00:29]} 51. Rg5+ {[%clk 0:00:21]}  Kh6 {[%clk 0:00:29]} 52. Ra5 {[%clk 0:00:21]}  Rf3+ {[%clk 0:00:29]} 53. Kg2 {[%clk 0:00:22]}  Rxb3 {[%clk 0:00:27]} 54. Rxa6+ {[%clk 0:00:22]}  Kg7 {[%clk 0:00:28]} 55. Ra5 {[%clk 0:00:23]}  Kg6 {[%clk 0:00:28]} 56. Rg5+ {[%clk 0:00:24]}  Kh6 {[%clk 0:00:28]} 57. Rf5 {[%clk 0:00:24]}  Rb7 {[%clk 0:00:25]} 58. Kg3 {[%clk 0:00:25]}  Rd7 {[%clk 0:00:23]} 59. Kf4 {[%clk 0:00:25]}  Rd3 {[%clk 0:00:23]} 60. Ke4 {[%clk 0:00:24]}  Rf3 {[%clk 0:00:14]} 61. Rxf3 {[%clk 0:00:18]}  gxf3 {[%clk 0:00:15]} 62. Kxf3 {[%clk 0:00:19]}  Kg6 {[%clk 0:00:16]} 63. Ke4 {[%clk 0:00:20]}  Kf6 {[%clk 0:00:12]} 64. Kf4 {[%clk 0:00:20]}  Ke6 {[%clk 0:00:08]} 65. Kg5 {[%clk 0:00:17]}  f5 {[%clk 0:00:09]} 66. Kxh5 {[%clk 0:00:17]}  Kf6 {[%clk 0:00:10]} 67. Kh6 {[%clk 0:00:15]}  f4 {[%clk 0:00:10]} 68. h5 {[%clk 0:00:15]}  f3 {[%clk 0:00:11]} 69. Kh7 {[%clk 0:00:16]}  f2 {[%clk 0:00:11]} 70. h6 {[%clk 0:00:17]}  f1=Q {[%clk 0:00:12]} 71. Kh8 {[%clk 0:00:17]}  Qg2 {[%clk 0:00:12]} 72. h7 {[%clk 0:00:17]}  Qg7# {[%clk 0:00:13]} 0-1


[Site "https://www.chess.com"]